bitfinex/quotes_ETHUSD_20260114
["timestamp","ask_amount","ask_price","bid_price","bid_amount"]
[1768402097692,2.99697305,3336.7,3335.5,0.001]
[1768402097880,0.392,3336.5,3335.5,0.001]
[1768402098069,0.392,3336.4,3335.5,0.001]
[1768402098388,2.99697305,3336.7,3335.5,0.001]
[1768402098592,0.392,3336.3,3335.5,0.001]
[1768402098995,2.99697305,3336.7,3335.5,0.001]
[1768402099195,0.392,3336.6,3335.5,0.001]
[1768402099396,1.03058416,3336.6,3335.5,0.001]
[1768402099707,5.9943054,3336.5,3335.5,0.001]
[1768402099875,8.9914581,3336.5,3335.5,0.001]
[1768402100076,11.05420733,3336.5,3335.5,0.001]
[1768402100376,11.05420733,3336.5,3333.8,0.09032472]
[1768402100377,0.392,3336.4,3334.5,0.09032472]
[1768402100575,0.392,3336.4,3334.9,2.99859066]
[1768402100871,0.392,3336.4,3334.5,2.99891695]
[1768402101215,11.9886108,3336.5,3334.2,0.09032472]
[1768402101216,0.393,3336.3,3334.2,0.09032472]
[1768402101524,2.12643883,3336.3,3333.9,0.001]
[1768402101820,2.12643883,3336.0,3333.9,0.001]
[1768402102020,2.12643883,3336.0,3334.6,0.09032472]
[1768402102021,2.15273239,3335.9,3334.6,0.09032472]
[1768402102188,1.75973239,3335.9,3334.9,0.09032472]
[1768402102503,1.75973239,3335.9,3334.7,0.09032472]
[1768402102504,0.393,3335.8,3334.7,0.09032472]
[1768402102671,0.393,3335.8,3334.4,0.09032472]
[1768402102875,0.393,3335.8,3334.0,0.09032472]
[1768402103076,0.42791712,3335.7,3334.4,0.09032472]
[1768402103277,8.99253618,3336.1,3334.4,0.09032472]
[1768402103278,5.99358686,3336.9,3335.8,0.09032472]
[1768402103586,2.99697305,3336.7,3335.4,2.99814115]
[1768402103780,8.99091915,3336.7,3335.3,0.09032472]
[1768402103994,0.393,3336.6,3335.5,0.09032472]
[1768402104193,0.393,3336.5,3335.5,0.09032472]
[1768402104400,0.393,3336.5,3335.5,0.40821123]
[1768402104919,0.393,3336.5,3335.0,0.001]
[1768402105070,0.393,3336.5,3335.1,0.09032472]
[1768402105269,8.99091915,3336.7,3335.3,0.09032472]
[1768402105270,2.99697305,3336.7,3335.3,0.09032472]
[1768402105483,2.99697305,3336.7,3335.7,0.09032472]
[1768402105807,0.393,3336.8,3335.9,0.09032472]
[1768402106009,0.002,3337.3,3336.1,0.09032472]
[1768402106010,0.393,3336.7,3336.1,0.09032472]
[1768402106502,0.393,3336.7,3335.9,0.41117236]
[1768402106692,0.393,3336.7,3336.3,0.09032472]
[1768402106898,0.002,3337.5,3336.9,0.09032472]
[1768402107204,0.395,3337.5,3336.9,0.09032472]
[1768402107510,0.002,3337.8,3336.9,0.09032472]
[1768402107804,2.99798537,3337.8,3336.3,0.09032472]
[1768402107974,0.002,3337.8,3336.5,6.08462185]
[1768402108170,0.002,3337.8,3336.6,0.61749466]
[1768402108602,0.002,3337.8,3336.4,2.99723233]
[1768402108804,0.002,3337.8,3336.4,2.99715934]
[1768402108996,0.002,3337.8,3336.3,2.99730215]
[1768402109302,0.393,3337.7,3336.5,2.99714695]
[1768402109507,0.393,3337.7,3336.6,0.29971469]
[1768402109807,2.9961649,3337.6,3336.6,0.29971469]
[1768402109979,2.9961649,3337.6,3336.0,14.59032472]
[1768402109980,2.9961649,3337.6,3336.4,2.9972386]
[1768402110175,2.9961649,3337.6,3336.1,2.99747665]
[1768402110176,2.9961649,3337.6,3336.0,14.5]
[1768402110402,0.393,3337.5,3336.0,14.5]
[1768402110614,0.393,3337.5,3336.2,2.99736345]
[1768402110790,0.393,3337.5,3336.3,2.0494956]
[1768402111108,0.393,3337.5,3336.1,2.99749987]
[1768402111298,2.9961649,3337.6,3336.5,2.9971499]
[1768402111476,0.393,3337.5,3336.2,0.02997422]
[1768402111672,2.99634445,3337.4,3336.1,2.99751206]
[1768402111877,2.99634445,3337.4,3336.2,0.34086844]
[1768402112073,0.393,3337.3,3336.2,0.34086844]
[1768402112278,1e-08,3337.3,3336.3,0.02997332]
[1768402112476,1e-08,3337.3,3335.8,3.08804918]
[1768402112477,2.12643884,3337.3,3334.9,0.16]
[1768402112677,0.21264388,3337.2,3334.6,0.09032472]
[1768402112878,0.21264388,3337.2,3335.3,2.99821274]
[1768402113126,14.9803829,3337.7,3336.0,2.99759396]
[1768402113127,8.98822782,3337.7,3336.0,2.99759396]
[1768402113408,2.51843883,3337.6,3335.2,2.13352346]
[1768402113572,5.9926889,3337.4,3335.4,2.99814115]
[1768402113773,0.85111277,3337.3,3335.5,0.52219893]
[1768402113977,0.392,3337.2,3335.5,0.52219893]
[1768402114410,0.85111277,3337.3,3335.5,0.52219893]
[1768402114612,0.392,3337.2,3335.6,0.09032472]
[1768402114920,5.9926889,3337.4,3335.9,2.22384818]
[1768402114921,0.392,3337.4,3335.9,2.22384818]
[1768402115207,0.392,3337.4,3336.0,0.22238482]
[1768402115706,2.99643424,3337.3,3336.0,3.21996639]
[1768402115903,2.99643424,3337.3,3336.0,0.22238482]
[1768402116105,5.99286848,3337.3,3335.8,2.99774685]
[1768402116306,5.99286848,3337.3,3335.5,0.52219893]
[1768402116511,5.99286848,3337.3,3335.8,2.99776262]
[1768402116812,8.98822542,3337.7,3335.3,2.13352346]
[1768402117002,0.393,3337.6,3335.4,0.12030613]
[1768402117198,0.393,3337.6,3335.7,2.99785369]
[1768402117524,1.23793006,3337.5,3335.7,0.30881784]
[1768402117678,5.99286848,3337.3,3335.9,2.99768677]
[1768402118083,0.002,3337.0,3335.8,2.99776739]
[1768402118998,0.002,3337.0,3335.3,2.13352346]
[1768402119201,2.12843883,3337.0,3334.7,2.13352346]
[1768402119399,2.12843883,3337.0,3335.8,2.99778032]
[1768402119400,0.002,3337.0,3335.8,2.99778032]
[1768402119588,0.393,3336.9,3335.3,2.99821857]
[1768402119793,2.99688324,3336.8,3335.4,0.02998141]
[1768402119993,2.99688324,3336.8,3335.3,2.99820865]
[1768402119994,0.393,3336.7,3335.3,5.99643969]
[1768402120195,2.99870362,3337.0,3335.5,0.09032472]
[1768402120391,0.393,3336.9,3335.2,2.99830337]
[1768402120729,0.393,3336.8,3335.3,6.32636801]
[1768402120940,0.393,3336.8,3335.3,3.29815466]
[1768402121393,2.99870362,3337.0,3335.4,0.02998141]
[1768402121734,0.393,3336.9,3335.6,2.99796138]
[1768402121887,0.393,3336.9,3335.6,5.99592276]
[1768402121888,0.393,3336.8,3335.6,5.99592276]
[1768402122394,0.002,3337.0,3336.0,2.13352346]
[1768402122604,0.002,3337.0,3336.1,0.21335235]
[1768402122811,0.002,3337.0,3336.2,0.02997422]
[1768402123340,0.002,3337.0,3335.8,2.16350127]
[1768402123491,0.002,3337.0,3335.8,2.13352346]
[1768402123920,0.002,3337.0,3335.9,8.99307531]
[1768402124105,0.002,3337.0,3336.0,2.54766323]
[1768402124314,0.002,3337.3,3336.0,4.68118669]
[1768402124524,0.394,3337.3,3336.0,4.68118669]
[1768402125306,2.99627269,3337.5,3336.0,4.68118669]
[1768402125307,2.12643883,3338.3,3336.3,0.09032472]
[1768402125511,0.002,3338.7,3336.3,2.22384818]
[1768402125512,2.99549146,3338.4,3336.3,2.22384818]
[1768402125698,0.394,3337.8,3336.5,2.22384818]
[1768402125895,0.394,3337.8,3336.6,5.99412574]
[1768402126101,0.394,3337.8,3336.6,8.1276492]
[1768402126494,0.002,3337.8,3336.6,8.1276492]
[1768402127129,0.002,3337.8,3336.6,5.13058633]
[1768402127330,0.002,3337.8,3336.7,0.83980345]
[1768402127529,2.99798928,3337.8,3336.7,0.83980345]
[1768402127735,0.002,3337.8,3336.7,0.83980345]
[1768402127932,0.002,3337.8,3336.8,5.99376648]
[1768402128315,0.002,3337.8,3336.8,8.12728994]
[1768402128635,0.002,3337.8,3336.9,0.34465423]
[1768402128636,0.394,3337.8,3336.9,0.34465423]
[1768402128833,0.002,3337.8,3336.7,2.99697305]
[1768402129002,0.002,3337.8,3336.9,0.02996793]
[1768402129334,0.002,3337.8,3336.7,5.9939461]
[1768402129502,0.002,3337.8,3336.7,2.99697305]
[1768402129829,0.392,3337.9,3336.4,0.27031729]
[1768402130035,2.99598537,3337.8,3336.5,5.99429706]
[1768402130622,5.99197074,3337.8,3336.5,2.99714436]
[1768402130824,0.002,3337.5,3336.5,2.99714436]
[1768402131152,0.002,3337.8,3337.0,0.09032472]
[1768402131439,0.002,3337.8,3336.6,0.09032472]
[1768402131440,0.002,3337.8,3336.7,0.389]
[1768402131648,0.002,3337.8,3336.6,0.02997062]
[1768402131816,0.002,3337.8,3336.7,0.02996973]
[1768402132154,2.99798537,3337.8,3336.7,2.99692338]
[1768402132337,2.99798537,3337.8,3336.8,0.59940677]
[1768402132710,0.002,3337.8,3336.9,0.02996793]
[1768402132916,0.002,3338.7,3337.4,0.09032472]
[1768402133216,0.005,3339.3,3337.4,0.09032472]
[1768402133217,0.005,3339.3,3338.3,0.09032472]
[1768402133412,0.005,3339.3,3337.8,0.09032472]
[1768402133625,0.005,3339.3,3337.9,2.5206568]
[1768402133827,0.005,3339.3,3337.9,2.1316568]
[1768402134026,0.005,3339.3,3338.1,5.99143224]
[1768402134228,0.005,3339.3,3338.1,8.12308904]
[1768402134535,0.005,3339.3,3338.2,1.15079495]
[1768402134735,2.99401197,3340.0,3338.2,3.28245175]
[1768402135115,5.98802394,3340.0,3338.2,3.28245175]
[1768402135419,5.98802394,3340.0,3338.2,1.15079495]
[1768402135740,0.09032472,3339.8,3338.2,1.15079495]
[1768402135941,0.002,3340.1,3338.2,5.99125276]
[1768402136238,0.002,3340.1,3338.3,0.389]
[1768402136626,0.003,3339.2,3338.3,0.389]
[1768402136833,0.002,3340.1,3338.3,0.389]
[1768402137032,0.64066654,3340.1,3338.4,0.63802528]
[1768402137204,0.002,3340.1,3338.4,0.63802528]
[1768402137609,0.002,3340.1,3338.4,2.76968208]
[1768402137809,0.002,3340.1,3338.5,2.1316568]
[1768402138011,0.002,3340.1,3338.6,5.99053494]
[1768402138222,0.002,3340.1,3338.7,0.389]
[1768402138433,0.002,3340.1,3338.8,0.85111917]
[1768402139311,0.002,3340.1,3338.9,2.1316568]
[1768402139511,3.46322081,3340.7,3339.4,2.1316568]
[1768402139707,3.46322081,3340.7,3339.0,0.09032472]
[1768402139708,3.46322081,3340.7,3339.5,17.0206568]
[1768402139913,3.46322081,3340.7,3339.6,1.70206568]
[1768402140108,3.46322081,3340.7,3339.7,8.12021864]
[1768402140571,0.555,3341.2,3339.7,8.12021864]
[1768402140712,0.555,3341.2,3339.6,1.70206568]
[1768402140713,1e-08,3340.9,3339.6,1.70206568]
[1768402141065,2.99320543,3340.9,3339.4,0.389]
[1768402141210,1e-08,3340.9,3339.6,2.99436973]
[1768402141411,2.99320617,3340.9,3339.6,2.99436973]
[1768402141642,5.98641233,3340.9,3339.6,0.389]
[1768402141942,0.35482062,3340.8,3339.6,0.389]
[1768402142145,2.99338461,3340.7,3339.6,0.389]
[1768402142449,0.35482062,3340.8,3339.6,2.99435794]
[1768402142658,2.99321129,3340.9,3339.5,3.38343889]
[1768402142869,8.97963385,3340.9,3338.3,2.1316568]
[1768402143021,0.002,3340.3,3339.2,2.99465127]
[1768402143348,0.002,3340.3,3339.0,2.99486792]
[1768402143349,0.002,3340.3,3339.0,14.5]
[1768402143556,0.002,3340.3,3338.4,2.1316568]
[1768402143757,0.002,3340.3,3337.8,2.1316568]
[1768402144052,0.002,3340.3,3338.3,2.99548706]
[1768402144456,0.002,3340.3,3338.4,0.389]
[1768402144664,0.002,3340.3,3338.5,0.389]
[1768402144867,2.138424,3340.3,3338.3,5.99102371]
[1768402145051,0.2138424,3340.2,3338.6,0.02995267]
[1768402145377,0.09032472,3339.7,3338.4,0.59910237]
[1768402145524,2.136424,3339.7,3337.8,0.99599736]
[1768402145726,2.136424,3339.5,3337.1,0.001]
[1768402145920,0.40005594,3339.8,3337.1,0.001]
[1768402145921,2.136424,3339.3,3337.1,0.001]
[1768402146153,2.136424,3339.3,3337.6,0.09032472]
[1768402146154,0.392,3339.3,3337.6,0.09032472]
[1768402146357,2.99364495,3340.5,3337.6,0.09032472]
[1768402146358,5.9876654,3340.2,3338.5,0.09032472]
[1768402146534,5.9876654,3340.2,3338.5,0.47932472]
[1768402146730,3.38576464,3340.3,3338.7,0.09032472]
[1768402146941,0.392,3340.3,3338.9,0.09032472]
[1768402147144,0.002,3340.6,3339.2,0.09032472]
[1768402147368,0.002,3340.6,3339.6,0.09032472]
[1768402147527,0.002,3340.6,3340.0,0.09032472]
[1768402147731,0.002,3340.6,3339.8,0.09032472]
[1768402148228,0.002,3340.6,3339.7,0.09032472]
[1768402148428,0.002,3340.6,3339.9,0.09032472]
[1768402148738,0.002,3340.6,3339.7,0.09032472]
[1768402148928,0.002,3340.6,3339.4,0.09032472]
[1768402149526,0.002,3340.6,3339.2,0.09032472]
[1768402149527,0.002,3340.6,3338.4,2.1316568]
[1768402149727,2.138424,3340.6,3338.4,0.09032472]
[1768402150029,0.2138424,3340.5,3338.6,3.08559001]
[1768402150360,6.3793069,3340.4,3338.8,0.09032472]
[1768402150564,5.9873069,3340.4,3338.8,0.09032472]
[1768402150766,0.392,3340.3,3338.9,0.02994998]
[1768402150966,0.392,3340.3,3338.8,0.40791568]
[1768402151672,6.82126423,3340.4,3338.8,0.40791568]
[1768402151673,0.392,3340.2,3338.8,0.31759096]
[1768402151829,0.392,3340.2,3338.3,2.1316568]
[1768402152261,6.37984466,3340.1,3338.4,0.09032472]
[1768402152459,9.37376699,3340.1,3338.4,0.09032472]
[1768402152673,0.392,3340.0,3338.6,0.09032472]
[1768402152830,1.3293767,3340.0,3338.3,2.1316568]
[1768402153029,1.3293767,3340.0,3338.3,5.12718772]
[1768402153255,1.3293767,3340.0,3337.8,0.47932472]
[1768402153567,2.41428184,3339.9,3337.5,2.99623864]
[1768402153733,2.136424,3339.7,3337.6,0.59925944]
[1768402153933,2.136424,3339.6,3337.6,0.59925944]
[1768402154160,8.98338072,3339.5,3337.2,2.99644339]
[1768402154346,0.392,3339.4,3337.4,2.99631654]
[1768402154545,0.392,3339.4,3337.1,2.1326568]
[1768402154751,2.528424,3339.4,3337.1,0.001]
[1768402155066,1.75007252,3339.3,3337.4,2.99633745]
[1768402155241,1.75007252,3339.3,3337.1,0.001]
[1768402155242,0.392,3339.2,3337.1,0.001]
[1768402155449,2.136424,3339.0,3337.1,0.001]
[1768402155649,2.41460342,3338.9,3337.1,0.001]
[1768402155851,2.136424,3338.7,3337.1,0.001]
[1768402156145,11.12276476,3338.4,3337.1,0.001]
[1768402156863,0.392,3338.3,3337.1,0.001]
[1768402157437,8.98634076,3338.4,3337.1,0.001]
[1768402157792,5.99089384,3338.4,3337.1,0.001]
[1768402158257,5.99125276,3338.2,3337.1,0.001]
[1768402158463,0.24146034,3338.8,3337.1,0.001]
[1768402158464,2.99517776,3338.7,3337.1,0.001]
[1768402158645,0.392,3338.6,3337.1,0.001]
[1768402159244,5.99035552,3338.7,3337.1,0.001]
[1768402159449,8.98418781,3339.2,3337.1,2.1326568]
[1768402159662,0.392,3339.1,3337.2,0.02996524]
[1768402159837,0.392,3339.1,3337.1,0.001]
[1768402160040,2.46597317,3338.9,3337.1,0.001]
[1768402160234,0.392,3339.1,3337.1,0.001]
[1768402160235,11.72928264,3338.8,3337.1,0.001]
[1768402160535,1.56492826,3338.7,3337.1,0.001]
[1768402160739,2.46024287,3338.6,3337.1,0.001]
[1768402161270,2.73830608,3338.5,3337.1,0.001]
[1768402161464,2.46024287,3338.5,3337.1,0.001]
[1768402161670,2.86275998,3338.4,3337.1,0.001]
[1768402161837,2.86275998,3338.4,3336.1,0.001]
[1768402162039,2.46024287,3337.7,3336.1,0.001]
[1768402162241,5.9923298,3337.6,3336.1,0.001]
[1768402162439,0.392,3337.5,3336.1,0.001]
[1768402163253,1.33004947,3337.4,3336.1,0.001]
[1768402163452,0.392,3337.3,3336.1,0.001]
[1768402164251,8.99038029,3336.9,3335.0,0.001]
[1768402164467,0.392,3336.8,3335.0,0.001]
[1768402164672,0.392,3336.7,3335.0,0.001]
[1768402165946,0.392,3336.6,3335.0,0.001]
[1768402166364,5.9943054,3336.5,3335.0,0.001]
[1768402166545,2.46024287,3337.3,3335.0,0.030985]
[1768402166750,6.64010482,3337.2,3335.0,0.030985]
[1768402166946,0.392,3337.1,3335.0,0.001]
[1768402167669,2.85224287,3337.1,3335.3,0.001]
[1768402167871,2.94256759,3337.1,3335.3,0.001]
[1768402168259,8.99011086,3337.0,3335.3,0.001]
[1768402168478,1.50959345,3336.9,3335.3,0.001]
[1768402168838,0.392,3336.8,3335.3,0.001]
[1768402169272,0.392,3336.7,3335.3,0.03098231]
[1768402169448,3.253632,3337.2,3335.3,0.03098231]
[1768402169449,0.002,3337.2,3335.3,2.53584998]
[1768402169769,0.392,3337.1,3335.5,2.53484998]
[1768402170009,0.392,3337.1,3335.6,2.79746745]
[1768402170342,0.392,3337.1,3335.7,5.99574302]
[1768402170537,0.392,3337.1,3335.8,2.53484998]
[1768402170742,0.392,3337.1,3335.9,0.02997691]
[1768402171352,0.002,3337.2,3336.0,2.53484998]
[1768402171672,0.394,3337.2,3336.1,0.253485]
[1768402171980,0.002,3337.2,3336.1,0.253485]
[1768402172348,0.002,3337.2,3336.2,5.99484442]
[1768402172874,0.002,3337.2,3336.2,2.99742221]
[1768402173169,0.002,3337.2,3336.2,5.99484442]
[1768402173374,0.002,3337.2,3336.3,0.87831794]
[1768402173581,0.002,3337.2,3336.4,0.02997242]
[1768402173797,0.002,3337.2,3336.4,2.53484998]
[1768402174092,0.394,3337.5,3336.4,2.53484998]
[1768402174283,0.394,3337.5,3336.6,2.99706287]
[1768402174482,0.394,3337.5,3336.6,5.99412574]
[1768402174871,0.002,3337.5,3336.7,2.53484998]
[1768402175189,5.9901761,3338.8,3337.0,2.53484998]
[1768402175366,0.392,3338.7,3337.0,2.53484998]
[1768402175774,0.392,3338.7,3336.7,15.52617448]
[1768402176097,2.85224287,3338.7,3336.7,15.52617448]
[1768402176273,2.85224287,3338.7,3336.7,1.02617448]
[1768402176468,13.46452939,3338.6,3336.7,1.02617448]
[1768402176668,13.46452939,3338.6,3336.7,4.02312385]
[1768402176669,12.92950479,3338.6,3336.7,4.02312385]
[1768402177104,15.92477226,3338.6,3336.7,1.02617448]
[1768402177673,15.92477226,3338.6,3336.7,2.99697138]
[1768402177991,15.92477226,3338.6,3336.7,2.9969632]
[1768402178195,8.98580241,3338.6,3336.8,2.53484998]
[1768402178398,0.002,3338.9,3337.0,2.53484998]
[1768402178703,0.392,3338.8,3337.0,2.53484998]
[1768402179204,0.002,3338.9,3337.6,2.6251747]
[1768402179406,0.002,3338.9,3337.6,2.53484998]
[1768402179568,0.002,3338.9,3337.2,2.92284998]
[1768402179903,0.002,3338.9,3337.2,2.53484998]
[1768402180495,2.99508805,3338.8,3337.3,5.99286848]
[1768402180800,0.002,3338.3,3337.4,0.97685621]
[1768402180968,0.09648138,3338.6,3337.3,2.53484998]
[1768402181175,0.002,3338.9,3337.5,2.53484998]
[1768402182498,0.002,3338.9,3337.6,8.6175045]
[1768402182682,0.002,3338.9,3337.7,1.17041702]
[1768402184885,0.002,3338.9,3337.6,2.53484998]
[1768402185075,0.002,3338.9,3337.6,5.53098457]
[1768402185273,0.002,3338.9,3337.6,2.53484998]
[1768402185603,0.002,3338.9,3337.6,5.53101254]
[1768402185906,0.002,3338.9,3337.2,0.388]
[1768402186111,0.002,3338.9,3337.3,2.95655651]
[1768402186310,0.002,3338.9,3337.3,2.92659217]
[1768402186602,0.002,3338.9,3337.4,2.99632952]
[1768402186985,0.002,3338.9,3337.4,5.99267397]
[1768402187305,0.002,3338.9,3337.3,2.92659217]
[1768402187306,0.002,3338.9,3337.3,5.8326737]
[1768402187471,2.99440941,3339.6,3337.3,5.8326737]
[1768402187472,2.99607073,3340.0,3338.3,2.6251747]
[1768402187673,0.002,3340.0,3338.9,0.09032472]
[1768402188015,0.002,3340.3,3338.9,0.888]
[1768402188774,0.002,3340.3,3338.9,0.5]
[1768402189673,0.09032472,3340.1,3338.9,0.5]
[1768402190028,0.09032472,3339.9,3337.8,5.53081605]
[1768402190193,0.09032472,3339.9,3337.9,2.0030816]
[1768402190194,0.391,3339.8,3337.9,2.0030816]
[1768402190379,0.391,3339.8,3338.0,0.02995805]
[1768402190573,5.98856184,3339.7,3338.0,3.02575181]
[1768402190776,2.99428092,3339.7,3338.1,2.33664343]
[1768402190978,0.002,3340.3,3338.2,2.75459969]
[1768402190979,6.3786654,3340.2,3338.2,2.75459969]
[1768402191206,6.93328645,3340.2,3338.3,3.51084395]
[1768402191408,9.92711915,3340.2,3338.3,3.51084395]
[1768402192124,9.92711915,3340.2,3338.3,1.17420052]
[1768402192272,9.92711915,3340.2,3338.1,0.388]
[1768402192478,3.93945375,3340.2,3338.3,2.33664343]
[1768402192719,6.93328645,3340.2,3338.3,2.33664343]
[1768402193018,9.92711915,3340.2,3338.4,0.388]
[1768402193181,3.93945375,3340.2,3338.5,2.33664343]
[1768402193379,6.93328645,3340.2,3338.6,0.87155354]
[1768402194514,0.002,3339.9,3338.6,0.87155354]
[1768402194733,8.98284276,3339.7,3338.0,2.33664343]
[1768402195007,5.98856184,3339.7,3338.1,2.33664343]
[1768402195381,0.392,3339.6,3338.1,2.33664343]
[1768402195982,0.392,3339.6,3338.1,2.72464343]
[1768402196200,0.392,3339.6,3337.6,2.33664343]
[1768402196412,0.63805618,3339.5,3337.7,0.29587108]
[1768402196614,0.63805618,3339.5,3337.8,2.99592966]
[1768402196923,0.392,3339.6,3337.9,2.36660238]
[1768402197125,0.392,3339.6,3337.9,2.4569271]
[1768402197421,0.002,3339.9,3339.6,0.0208256]
[1768402198947,0.002,3339.9,3338.7,0.388]
[1768402198948,0.002,3339.9,3338.0,2.33664343]
[1768402199092,0.002,3339.9,3338.2,2.99562536]
[1768402199293,0.93977681,3339.9,3338.4,2.99538146]
[1768402199492,0.93977681,3339.9,3338.3,3.5674889]
[1768402199729,0.93977681,3339.9,3338.3,3.56755535]
[1768402199936,0.93977681,3339.9,3338.0,2.33664343]
[1768402200123,0.93977681,3339.9,3338.4,2.99544325]
[1768402200329,0.93977681,3339.9,3338.0,2.33664343]
[1768402200494,0.93977681,3339.9,3338.1,2.33664343]
[1768402200694,5.98838252,3339.8,3338.2,2.36659969]
[1768402200898,0.69281593,3339.7,3338.3,0.23665997]
[1768402201115,0.391,3339.6,3338.3,6.22765732]
[1768402201300,0.391,3339.7,3338.4,2.36659789]
[1768402201493,0.391,3339.7,3338.4,2.33664343]
[1768402201890,0.002,3339.9,3338.5,2.72464343]
[1768402202128,0.002,3339.9,3338.7,2.33664343]
[1768402202300,0.002,3339.9,3338.8,2.36659431]
[1768402202615,0.002,3339.9,3338.8,2.33664343]
[1768402202821,0.002,3339.9,3338.9,8.32664013]
[1768402203355,0.002,3339.9,3338.6,1.19478374]
[1768402203558,0.002,3339.9,3338.3,2.5733034]
[1768402203840,0.002,3339.9,3338.6,2.71345214]
[1768402204031,0.002,3339.9,3338.8,2.99508805]
[1768402204232,0.002,3339.9,3338.6,0.37680871]
[1768402204428,0.002,3339.9,3337.2,2.33664343]
[1768402204429,2.55719279,3339.9,3337.2,2.33664343]
[1768402204747,2.55719279,3339.9,3337.0,0.09132472]
[1768402204748,2.55519279,3339.3,3337.0,0.001]
[1768402204955,2.55519279,3339.1,3337.0,0.001]
[1768402205447,2.55519279,3338.6,3337.0,0.001]
[1768402205749,2.55519279,3338.6,3335.4,2.9980935]
[1768402205750,2.55519279,3337.8,3335.3,0.001]
[1768402205930,2.55519279,3337.6,3335.3,0.001]
[1768402206107,2.83415805,3337.5,3335.3,0.001]
[1768402206306,3.15667386,3337.4,3335.3,0.001]
[1768402206540,0.27896526,3337.3,3335.3,0.001]
[1768402206748,5.99322764,3337.1,3335.3,2.99921667]
[1768402206955,5.99322764,3337.1,3335.3,5.99744771]
[1768402207116,0.391,3337.0,3335.3,5.99744771]
[1768402207455,0.391,3336.9,3335.4,0.60877724]
[1768402207735,0.391,3336.9,3335.3,0.001]
[1768402209040,5.99376648,3336.8,3335.3,2.99920393]
[1768402209348,0.391,3336.7,3335.6,0.001]
[1768402209637,0.63847665,3336.6,3335.6,0.001]
[1768402210841,5.9943054,3336.5,3335.6,0.001]
[1768402211010,0.392,3336.4,3335.6,0.001]
[1768402212320,2.99679343,3336.9,3335.6,0.001]
[1768402212655,6.38541294,3337.0,3335.6,0.001]
[1768402212810,3.38870647,3337.0,3335.6,0.001]
[1768402213005,5.99179124,3337.9,3335.7,2.42696815]
[1768402213211,1.2466984,3337.8,3335.8,0.25482725]
[1768402214033,0.392,3337.7,3335.9,0.02997691]
[1768402214233,0.392,3337.7,3335.8,0.25482725]
[1768402214957,14.53985239,3337.6,3335.8,0.25482725]
[1768402215251,2.55519279,3337.5,3335.6,0.001]
[1768402215947,2.64551751,3337.5,3335.6,0.001]
[1768402216158,14.9808245,3337.6,3335.6,0.001]
[1768402216159,2.94719279,3337.4,3335.6,0.001]
[1768402216312,2.18480173,3337.3,3335.6,0.001]
[1768402216511,2.18480173,3337.3,3335.8,2.99778114]
[1768402216512,1.79280173,3337.3,3335.8,2.99778114]
[1768402216755,0.392,3337.2,3335.8,2.99778114]
[1768402216965,5.9923298,3337.6,3335.8,2.99778114]
[1768402217117,2.99529814,3338.6,3335.6,2.42796815]
[1768402217118,5.99215028,3337.7,3336.3,0.09032472]
[1768402217311,2.99607514,3337.7,3336.4,2.33664343]
[1768402217643,5.99199272,3337.8,3336.4,2.33664343]
[1768402217946,0.392,3337.9,3336.4,2.33664343]
[1768402217947,3.3879177,3337.9,3336.4,2.40696815]
[1768402218153,1.75279423,3339.2,3337.0,0.09032472]
[1768402218154,5.98963792,3339.1,3337.0,0.09032472]
[1768402218315,0.392,3339.0,3337.0,0.09032472]
[1768402218514,8.98445688,3339.1,3337.0,0.09032472]
[1768402218721,0.392,3339.0,3337.3,2.33664343]
[1768402218934,0.63816379,3338.9,3337.4,0.23366434]
[1768402219276,11.9803522,3338.8,3336.7,2.33664343]
[1768402219558,11.9803522,3338.8,3336.8,2.99688234]
[1768402219842,8.98526415,3338.8,3336.9,2.99677951]
[1768402220047,8.98526415,3338.8,3336.7,2.33664343]
[1768402220214,1.00154279,3338.7,3336.8,2.86634235]
[1768402220413,0.392,3338.6,3336.9,5.32975033]
[1768402220644,1.00154279,3338.7,3336.6,0.09032472]
[1768402220645,1.00154279,3338.7,3337.0,2.42329797]
[1768402220850,0.392,3338.6,3337.4,2.99634445]
[1768402221036,2.99535719,3338.5,3337.3,5.35435979]
[1768402221416,5.99071438,3338.5,3336.5,2.35793419]
[1768402221615,5.99071438,3338.5,3336.9,2.99672043]
[1768402221616,0.33873572,3338.4,3336.9,2.99672043]
[1768402221833,0.33873572,3338.4,3336.7,2.99692845]
[1768402221834,0.33873572,3338.4,3337.0,2.99669371]
[1768402222017,0.33873572,3338.4,3337.1,2.99658764]
[1768402222334,0.392,3338.3,3336.8,2.35793419]
[1768402222537,0.392,3338.3,3336.6,2.62793301]
[1768402223142,5.99125276,3338.2,3336.6,2.62793301]
[1768402223338,0.63832528,3338.1,3336.7,0.2627933]
[1768402223524,2.5367392,3338.0,3335.6,2.35893419]
[1768402223847,0.09032472,3337.7,3335.6,2.35893419]
[1768402224056,0.09032472,3337.4,3335.6,2.35893419]
[1768402224347,0.48232472,3337.6,3335.7,0.02997871]
[1768402224550,0.392,3337.6,3335.6,0.001]
[1768402224846,2.62706392,3337.3,3335.6,0.001]
[1768402225055,0.392,3337.2,3335.6,0.001]
[1768402225347,6.38522764,3337.1,3335.6,0.001]
[1768402225550,0.392,3337.0,3335.6,0.001]
[1768402226331,3.01906392,3337.0,3335.6,0.001]
[1768402226530,0.09032472,3336.7,3335.6,0.001]
[1768402226743,2.5367392,3336.7,3335.6,0.001]
[1768402226937,0.392,3337.0,3335.6,0.001]
[1768402227133,5.99376648,3336.8,3335.6,0.001]
[1768402227333,0.392,3336.7,3335.6,0.001]
[1768402227754,2.99688324,3336.8,3335.6,0.03097961]
[1768402227927,6.38576648,3336.8,3335.6,0.001]
[1768402228127,2.99643424,3337.3,3335.6,0.001]
[1768402228329,0.392,3336.9,3335.7,0.23589342]
[1768402228754,0.392,3336.9,3335.6,0.001]